Cogmind - Beta 11 @@@ ROGUE MODE // 2022.03.19 @ 23:47:16 Player: Termy Result: Destroyed by Y-45 Defender with Beam Rifle Performance ------------- Evolutions (0) 0 Regions Visited (2) 400 Robots Destroyed (14) 70 Value Destroyed (278) 278 Prototype IDs (0) 0 Alien Tech Used (0) 0 Bonus (0) 0 TOTAL SCORE: 748 Bonus ------- None Cogmind --------- Core Integrity 0/250 Matter 75/300 Energy 100/100 System Corruption 0% Temperature Cool (9) Movement Walking (190) Ox1 Location -10/Mines Parts ------- > --- POWER (1) -------- (None) > --- PROPULSION (2) --- Aluminum Leg > --- UTILITY (2) ------ Medium Storage Unit > --- WEAPON (2) ------- Heavy Assault Rifle Mining Claw > --- INVENTORY (10) --- Improved Heat Sink Small Storage Unit Terrain Scanner Terrain Scan Processor Assault Rifle Light Assault Rifle Light Assault Rifle Heavy Assault Rifle Peak State ------------ > --- POWER ------------ Light Ion Engine > --- PROPULSION ------- Wheel Wheel > --- UTILITY ---------- Medium Storage Unit Core Shielding > --- WEAPON ----------- Heavy Assault Rifle Grenade Launcher > --- INVENTORY -------- Small Storage Unit Assault Rifle Light Assault Rifle Light Assault Rifle Heavy Assault Rifle Improved Light Cannon [Rating: 8] Favorites ----------- Power Light Ion Engine Engine Light Ion Engine Propulsion Aluminum Leg Leg Aluminum Leg Wheel Wheel Utility Medium Storage Unit Storage Medium Storage Unit Protection Core Shielding Weapon Grenade Launcher Ballistic Gun Heavy Assault Rifle Ballistic Cannon Improved Light Cannon Launcher Grenade Launcher Slashing Weapon Mining Claw Build | -11 -10 -10 ------- Run | Scr Mat Min Slots Evolved . | . . . Power . | . . . Propulsion . | . . . Utility . | . . . Weapon . | . . . Parts Attached 16 | 6 8 2 Power 1 | 1 . . Engine 1 | 1 . . Core . | . . . Reactor . | . . . Propulsion 4 | 2 2 . Treads . | . . . Leg 2 | . 2 . Wheel 2 | 2 . . Hover . | . . . Flight . | . . . Utility 3 | 1 2 . Device . | . . . Storage 2 | 1 1 . Processor . | . . . Hackware . | . . . Protection 1 | . 1 . Artifact . | . . . Weapon 8 | 2 4 2 Energy Gun . | . . . Energy Cannon . | . . . Ballistic Gun 4 | 2 1 1 Ballistic Cannon 1 | . 1 . Launcher 2 | . 2 . Special Weapon . | . . . Impact Weapon . | . . . Slashing Weapon 1 | . . 1 Piercing Weapon . | . . . Special Melee Weapon . | . . . Unidentified Prototypes . | . . . Parts Lost 7 | . 3 4 Power 1 | . 1 . Propulsion 3 | . 2 1 Utility 1 | . . 1 Weapon 2 | . . 2 Highest Loss Streak 3 | . 3 3 To Critical Strikes . | . . . Average Slot Usage (%) 83 | . 84 82 Engine 2 | . 4 . Leg 19 | . 12 27 Wheel 6 | . 11 . Storage 14 | . 14 14 Protection 12 | . 12 13 Ballistic Gun 9 | . 7 12 Ballistic Cannon 5 | . 9 1 Launcher 11 | . 11 12 Naked Turns . | . . . Heaviest Build 20 | 11 20 18 Greatest Support 20 | 20 20 20 Greatest Overweight (x) 5 | . 5 . Average Overweight (x) . | . . . Largest Inventory Capacity 10 | 8 10 10 Average Capacity 9 | 6 9 10 Most Carried 9 | 1 9 9 Average Carried 7 | . 6 8 Final Capacity 10 | 8 10 10 Final Carried 9 | . 9 8 Class Distribution -------------------- 100% | Mutant Dominant Class ---------------- Mutant | -10/Materials Mutant | -10/Mines Resources | -11 -10 -10 ----------- Run | Scr Mat Min Matter Collected 311 | 185 89 37 Remotely . | . . . Salvage Created 195 | . 159 36 Parts 20 | . 15 5 Haulers Intercepted . | . . . Recyclers Shooed . | . . . Parts Field Recycled . | . . . Retrieved Matter . | . . . Parts Self-Destructed . | . . . Prevented . | . . . Kills | -11 -10 -10 ------- Run | Scr Mat Min Combat Hostiles Destroyed 11 | . 7 4 Melee 1 | . . 1 Guns 1 | . 1 . Cannons 1 | . 1 . AOE 8 | . 5 3 Classes Destroyed 4 | . 4 . Builder 2 | . 2 . Watcher 1 | . 1 . Swarmer 7 | . 3 4 Grunt 4 | . 4 . Best Kill Streak 6 | . 6 3 Combat Bots Only 4 | . 4 3 Max Kills in Single Turn 3 | . 3 2 Gunslinging . | . . . Exploded 2 | . 2 2 Melee 1 | . . 1 Uniques/NPCs Destroyed . | . . . Combat | -11 -10 -10 -------- Run | Scr Mat Min Damage Taken 923 | . 694 229 Core 250 | . 188 62 Absorbed by Shields . | . . . Redirected to Shielding 50 | . 40 10 Core Remaining (%) 100 | 100 . . Volleys Fired 29 | . 23 6 Largest 2 | . 2 2 Hottest 69 | . 69 69 Shots Fired 43 | . 36 7 Gun 21 | . 17 4 Cannon 12 | . 11 1 Launcher 10 | . 8 2 Special . | . . . Kinetic 33 | . 28 5 Thermal . | . . . Explosive 10 | . 8 2 Electromagnetic . | . . . Robot Hit Streak 4 | . 4 . Robot Miss Streak 7 | . 3 7 Penetration Max . | . . . Secondary Targets . | . . . Shots Hit Robots 21 | . 19 2 Core Hits 17 | . 13 4 Critical Kills . | . . . Critical Parts Destroyed . | . . . Critical Strikes 1 | . 1 . Blast 1 | . 1 . Melee Attacks 3 | . . 3 Impact . | . . . Slashing 3 | . . 3 Piercing . | . . . Sneak Attacks . | . . . Combat Hostiles . | . . . Follow-up Attacks . | . . . Damage Inflicted 1069 | . 888 181 Guns 152 | . 152 . Cannons 112 | . 94 18 Explosions 758 | . 642 116 Melee 47 | . . 47 Ramming . | . . . Kinetic 264 | . 246 18 Thermal . | . . . Explosive 758 | . 642 116 Electromagnetic . | . . . Impact . | . . . Slashing 47 | . . 47 Piercing . | . . . Highest Corruption . | . . . Average Corruption . | . . . Corruption Purged . | . . . Corruption Blocked . | . . . Overload Shots . | . . . Overflow Damage 43 | . 43 . Projectiles . | . . . Explosions 43 | . 43 . Melee . | . . . Knockbacks 1 | . 1 . Impact . | . . . Kinetic 1 | . 1 . Secondary . | . . . Self-Inflicted Damage 32 | . 32 . Shots 3 | . 3 . Rammed . | . . . Targets Rammed . | . . . Kicked . | . . . Crushed . | . . . Highest Temperature 27 | . 27 . Average Temperature 15 | . 15 . Received Heat Transfer 387 | . 351 36 Siege Activations . | . . . Robots Corrupted . | . . . Combat Hostiles . | . . . Parts Fried . | . . . Impact Corruptions . | . . . Robots Melted . | . . . Combat Hostiles . | . . . Parts Melted . | . . . Heat Transferred . | . . . Parts Sabotaged . | . . . Parts Stolen . | . . . Parts Stripped . | . . . Power Chain Reactions . | . . . Missiles Intercepted . | . . . Alert | -11 -10 -10 ------- Run | Scr Mat Min Peak Influence 306 | . 306 250 Initial 118 | . . 118 Average 192 | . 193 210 Maximum Alert Level 1 | . 1 1 Low Security (%) 34 | 100 50 11 Level 1 65 | . 49 88 Level 2 . | . . . Level 3 . | . . . Level 4 . | . . . Level 5 . | . . . High Security . | . . . Max Security . | . . . Squads Dispatched . | . . . Investigation . | . . . Extermination . | . . . Reinforcement . | . . . Assault . | . . . Garrison . | . . . Intercept . | . . . Searches Triggered . | . . . Construction Impeded . | . . . Haulers Reinforced . | . . . Active Scanning Responses . | . . . Cargo Convoy Interrupts . | . . . Stealth | -11 -10 -10 --------- Run | Scr Mat Min Distress Signals 1 | . 1 . Communications Jammed . | . . . Distress Signals . | . . . Times Spotted 20 | . 10 10 Peak Tracking Total 7 | . 7 5 Tactical Retreats 1 | . . 1 Traps | -11 -10 -10 ------- Run | Scr Mat Min Traps Triggered . | . . . Indirectly . | . . . Trap Hack Attempts . | . . . Triggered . | . . . Disarmed . | . . . Reprogrammed . | . . . Reused . | . . . Traps Extracted . | . . . Installed . | . . . Triggered . | . . . Machines | -11 -10 -10 ---------- Run | Scr Mat Min Machines Disabled 2 | . 2 . Max in Single Turn 1 | . 1 . Machines Sabotaged . | . . . Garrisons Compromised . | . . . Overloaded Fab Kills . | . . . Hacking | -11 -10 -10 --------- Run | Scr Mat Min Machines Accessed 3 | . 3 . Terminals 3 | . 3 . Fabricators . | . . . Repair Stations . | . . . Recycling Units . | . . . Scanalyzers . | . . . Garrison Access . | . . . Total Hacks 9 | . 9 . Successful 7 | . 7 . Failed 2 | . 2 . Catastrophic 1 | . 1 . Database Lockouts . | . . . Manual . | . . . Terminals 9 | . 9 . Fabricators . | . . . Repair Stations . | . . . Recycling Units . | . . . Scanalyzers . | . . . Garrison Access . | . . . Terminal Hacks 7 | . 7 . Record 3 | . 3 . Emergency Access Points 1 | . 1 . Alert Level 2 | . 2 . Reinforcement Status 1 | . 1 . Fabricator Hacks . | . . . Repair Station Hacks . | . . . Recycling Unit Hacks . | . . . Scanalyzer . | . . . Garrison Access Hacks . | . . . Unauthorized Hacks . | . . . Terminals . | . . . Fabricators . | . . . Repair Stations . | . . . Recycling Units . | . . . Scanalyzers . | . . . Garrison Access . | . . . Data Cores Recovered . | . . . Used . | . . . Hacking Detections 1 | . 1 . Full Trace Events . | . . . Feedback Events . | . . . Feedback Blocked . | . . . Robot Schematics Acquired . | . . . Robots Built . | . . . Authchips . | . . . Time . | . . . Total Robot Build Rating . | . . . Part Schematics Acquired . | . . . Parts Built . | . . . Authchips . | . . . Time . | . . . Total Part Build Rating . | . . . Parts Repaired . | . . . Time . | . . . Parts Recycled . | . . . Recycled Matter . | . . . Retrieved Matter . | . . . Retrieved Components . | . . . Parts Scanalyzed . | . . . Part Schematics Acquired . | . . . Parts Damaged . | . . . Bothacking | -11 -10 -10 ------------ Run | Scr Mat Min Used RIF Installer . | . . . Robots Hacked . | . . . Non-combat . | . . . Combat . | . . . Robot Hacks Applied . | . . . Relay Couplers Released . | . . . Fabnet Peak Effective % . | . . . Robots Rewired . | . . . Allies Hacked . | . . . Hacks Repelled . | . . . Allies | -11 -10 -10 -------- Run | Scr Mat Min Total Allies . | . . . Largest Group . | . . . Highest-Rated Group . | . . . Highest-Rated Ally . | . . . Total Orders . | . . . Ally Attacks . | . . . Total Damage . | . . . Kills . | . . . Allies Corrupted . | . . . Allies Melted . | . . . Intel | -11 -10 -10 ------- Run | Scr Mat Min Robot Analysis Total . | . . . Derelict Logs Recovered 1 | . . 1 Drone Launches . | . . . Drone Recoveries . | . . . Exploration | -11 -10 -10 ------------- Run | Scr Mat Min Turns Passed 795 | 36 393 366 Spaces Moved 596 | 31 288 277 Core 12 | 1 11 . Treads . | . . . Legs 414 | . 137 277 Wheels 170 | 30 140 . Hover . | . . . Flight . | . . . Fastest Speed 50 | 50 80 120 Average Speed 112 | 79 108 120 Slowest Speed 300 | 80 300 120 Overloaded Moves . | . . . Propulsion Burnouts . | . . . Robots Hopped . | . . . Cave-ins Triggered . | . . . Exploration Rate (%) 38 | 3 45 67 Regions Visited 2 Branch Regions 1 Pre-discovered Areas . | . . . Known Exits Taken . | . . . Unknown Exits Taken 2 | 1 1 . Scrap Searched 1 | . . 1 Spaces Dug . | . . . Terrain Destroyed 49 | . 35 14 Melee . | . . . Projectile . | . . . AOE 49 | . 35 14 Terrain Rammed . | . . . Walls Destroyed . | . . . Machines Disabled . | . . . Actions | -11 -10 -10 --------- Run | Scr Mat Min Total 668 | 40 329 299 Wait 13 | 1 2 10 Move 594 | 30 287 277 Hop . | . . . Pick Up 10 | 3 6 1 Fast Attach 9 | 3 6 . Attach 5 | 3 . 2 Detach 3 | . 3 . Swap 2 | . 2 . Drop . | . . . Fire 29 | . 23 6 Melee 3 | . . 3 Ram . | . . . Kick . | . . . Crush . | . . . Escape Stasis . | . . . Rewire . | . . . Trap . | . . . Miscellaneous . | . . . Route ------- -11/Scrapyard -10/Materials -10/Mines (discovered 1 exit: [*Mat]) History --------- Turn | Location | Event 2 | -11/Scrapyard | Met Revision 17 18 | -11/Scrapyard | Discovered new exit (range 16) 37 | -11/Scrapyard | Entered Materials 215 | -10/Materials | Core integrity fell below 50% 240 | -10/Materials | Lost 3 parts (1p2n) 305 | -10/Materials | Build established: Mutant 377 | -10/Materials | Discovered new exit (range 16) 430 | -10/Materials | Entered Mines 524 | -10/Mines | Discovered new exit (range 14) 730 | -10/Mines | Learned Materials security intel 736 | -10/Mines | Joined a pair of Derelicts in attacking an 0b10 outpost 771 | -10/Mines | Core integrity fell below 20% 796 | -10/Mines | Destroyed by Y-45 Defender with Beam Rifle Last Messages --------------- 00524_ EXIT=FOUND 00567_ K-01 Serf collects debris. 00708_ T-07 Excavator is excavating. 00730_ Acquired derelict log, extracted data. Data stored: Materials security intel. 00736_ A derelict emerges from the shadows: "We've had our eye on this brand new outpost for a little while, just waiting for an opportunity to strike. Need some help?" 00736_ Machine disabled. 00740_ 9K-127(g) destroyed. 00743_ Acquired Imp. Heat Sink. 00744_ R-06 Scavenger collects Carbon-fiber Leg. 00747_ R-06 Scavenger collects Imp. Heat Sink. 00748_ ES-4PS(g) destroyed. 00750_ R-06 Scavenger collects Carbon-fiber Leg. 00756_ R-06 Scavenger collects Lgt. Angular Momentum Engine. 00757_ Grenade Launcher destroyed. 00782_ Aluminum Leg destroyed. 00787_ Core Shielding destroyed. 00789_ S-10 Pest destroyed. Map ----- +----------------------------------------------------+ | #????????????# ##??????###? | | "" #???#####????# ######??????????? | | "" #??## ##???## ##???????????????? | | "" #??# ###### #????????????????? | | "" #?## #????????????????? | | ### #???????????????? | | ##### ###### #??????????????? | | ## ##????# ### ??????????????? | | # """ ##?????# ##??# #??????????????? | | """ #??????## ###???? ##???????????????? | | """ ##???????####?????? ##????????????????? | | ##??????????????????? ##?????????????????? | | ##?????????????????????????????????????????? | | ## ##??????????????????????????????????????????? | | ######???????????????????????????????????????????? | | ?????????????????????????????????????????????????? | | ?????????????????????????????????????????????????? | | #????????????????????????????????????????????????? | | ##???????????????????????????????????????????????? | | #???????????????????????????????????????????????? | | #???????????????????????????????????????????????? | | ##???????????????????????????????????????????????? | | #??????######????????????????????????????????????? | | ??????## #????????????????????????????????????? | | ??????#!! !!???????########k#???????????????????? | | #?????#[[ [????????# sY@ss #???????????????????? | | #??????# % ####????# ########???????????????????? | | #?????###//## ##???# #??????????????????????????? | | #?????# % ##??# #??????????????????????????? | | #?????# ##?# #??????????????????????????? | | ####### #?# #??????????????????????????? | | ### #??????????????????????????? | | #??????????????????????????? | | ############ ## #??????????????????????????? | | #??????????## ## #??????????????????????????? | | #??????????## #??????????????????????????? | | #??????????# ### #??????????????????????????? | | #??????????# ####?# #??????????????????????????? | | ??????????# ##????# #??????????????????????????? | | ??????????# #?????# #??????????????????????????? | | ??????????## ##????? ??????????????????????????? | | ???????????##??????? ??????????????????????????? | | ???????????????????? ??????????????????????????? | | ????????????????????"""??????????????????????????? | | ????????????????????"""??????????????????????????? | | ?????????????????????????????????????????????????? | | ?????????????????????????????????????????????????? | | ?????????????????????????????????????????????????? | | | | | +----------------------------------------------------+ Best States ------------- Heat Dissipation 25 Energy Generation 10 Energy Capacity 125 Matter Stores 225 Matter Capacity 300 Sight Range 16 Terrain Scan Density 10 Core Shielding 20 Evasion (%) 55 Item Schematics ----------------- None Robot Schematics ------------------ None Fabricated ------------ Nothing Alien Tech Used ----------------- None Achievements -------------- None Challenges ------------ None Game ------ Seed PulseCannonShield Manual? 0 Play Time 00:12:34 Cumulative 5.7 hours Start 2022.03.19 @ 23:34:36 End 2022.03.19 @ 23:47:16 Sessions 1 Manual Loads 0 Difficulty Rogue Special Mode None Game No. 7 Rogue 7 Adventurer 0 Explorer 0 Win Type - Total 0 Types 0/0/0/0/0/0/0/0/0 Lore% 17 Gallery% 15 Achievement% 20 Wizard Run 0 Options --------- ASCII 0 Keyboard 0 Movement Numpad Keybinds 0 Fullscreen 2 Font 18/X11Bold Map View 76x50 Tactical HUD 1 Map Filters NONE Filters NONE Steam 1 RUN: 6247695b-1a1b-4382-b1c1-7d229a8e0f5b